[Event "Polofinale MCR junioru 2023"]
[Site "Czech Republic"]
[Date "2023.11.13"]
[Round "3.29"]
[White "Veny, Jaume"]
[Black "Stocek, Martin"]
[Result "1/2-1/2"]
[TimeControl "90 min per 40 moves + 15 min + 30 sec / move from move 1"]
[WhiteFideId "397792"]
[BlackFideId "380121"]
[WhiteElo "1729"]
[BlackElo "2125"]

1. d4 {[%clk 01:30:52]} {[%emt 00:00:08]} f5 {[%clk 01:30:52]} {[%emt
00:00:08]} 2. c4 {[%clk 01:31:15]} {[%emt 00:00:07]} Nf6 {[%clk 01:31:17]}
{[%emt 00:00:06]} 3. Nf3 {[%clk 01:31:02]} {[%emt 00:00:43]} e6 {[%clk
01:31:31]} {[%emt 00:00:15]} 4. g3 {[%clk 01:31:02]} {[%emt 00:00:31]} d5
{[%clk 01:31:35]} {[%emt 00:00:27]} 5. Bg2 {[%clk 01:30:32]} {[%emt 00:00:59]}
c6 {[%clk 01:31:56]} {[%emt 00:00:10]} 6. O-O {[%clk 01:28:55]} {[%emt
00:02:07]} Bd6 {[%clk 01:32:14]} {[%emt 00:00:11]} 7. b3 {[%clk 01:23:03]}
{[%emt 00:06:23]} Qe7 {[%clk 01:32:34]} {[%emt 00:00:10]} 8. Bf4 {[%clk
01:23:16]} {[%emt 00:00:17]} Bxf4 {[%clk 01:31:03]} {[%emt 00:02:01]} 9. gxf4
{[%clk 01:23:41]} {[%emt 00:00:05]} O-O {[%clk 01:30:54]} {[%emt 00:00:37]} 10.
Ne5 {[%clk 01:17:20]} {[%emt 00:06:53]} Nbd7 {[%clk 01:29:26]} {[%emt
00:01:58]} 11. Nd2 {[%clk 01:13:19]} {[%emt 00:04:31]} Nxe5 {[%clk 01:27:50]}
{[%emt 00:02:06]} 12. fxe5 {[%clk 01:13:43]} {[%emt 00:00:06]} Ng4 {[%clk
01:25:19]} {[%emt 00:03:00]} 13. h3 {[%clk 00:54:15]} {[%emt 00:19:58]} Nh6
{[%clk 01:25:42]} {[%emt 00:00:07]} 14. f4 {[%clk 00:53:29]} {[%emt 00:01:16]}
g5 {[%clk 01:20:05]} {[%emt 00:06:07]} 15. Nf3 {[%clk 00:44:47]} {[%emt
00:09:12]} g4 {[%clk 01:07:29]} {[%emt 00:13:07]} 16. Nh2 {[%clk 00:37:37]}
{[%emt 00:07:39]} Kh8 {[%clk 01:01:54]} {[%emt 00:06:05]} 17. hxg4 {[%clk
00:35:02]} {[%emt 00:03:05]} fxg4 {[%clk 01:02:06]} {[%emt 00:00:19]} 18. e4
{[%clk 00:34:40]} {[%emt 00:00:52]} g3 {[%clk 00:32:57]} {[%emt 00:29:39]} 19.
Nf3 {[%clk 00:34:43]} {[%emt 00:00:27]} Ng4 {[%clk 00:32:51]} {[%emt 00:00:36]}
20. exd5 {[%clk 00:25:36]} {[%emt 00:09:38]} exd5 {[%clk 00:31:51]} {[%emt
00:01:30]} 21. Qd2 {[%clk 00:24:23]} {[%emt 00:01:43]} Bf5 {[%clk 00:29:10]}
{[%emt 00:03:11]} 22. cxd5 {[%clk 00:24:25]} {[%emt 00:00:28]} cxd5 {[%clk
00:29:37]} {[%emt 00:00:03]} 23. Rac1 {[%clk 00:22:25]} {[%emt 00:02:30]} Nf2
{[%clk 00:27:08]} {[%emt 00:02:59]} 24. Qa5 {[%clk 00:20:29]} {[%emt 00:02:25]}
b6 {[%clk 00:16:50]} {[%emt 00:10:49]} 25. Qxd5 {[%clk 00:18:54]} {[%emt
00:02:03]} Rad8 {[%clk 00:17:19]} {[%emt 00:00:02]} 26. Qc4 {[%clk 00:16:38]}
{[%emt 00:02:46]} Bd3 {[%clk 00:17:41]} {[%emt 00:00:08]} 27. Qc7 {[%clk
00:15:18]} {[%emt 00:01:50]} Rd7 {[%clk 00:17:31]} {[%emt 00:00:40]} 28. Qc6
{[%clk 00:15:42]} {[%emt 00:00:05]} Bxf1 {[%clk 00:17:34]} {[%emt 00:00:27]} 29.
Rxf1 {[%clk 00:14:58]} {[%emt 00:01:14]} Rxf4 {[%clk 00:09:25]} {[%emt
00:08:39]} 30. d5 {[%clk 00:12:43]} {[%emt 00:02:45]} Ng4 {[%clk 00:03:43]}
{[%emt 00:06:12]} 31. d6 {[%clk 00:09:27]} {[%emt 00:03:46]} Qe6 {[%clk
00:03:21]} {[%emt 00:00:51]} 32. Rc1 {[%clk 00:09:25]} {[%emt 00:00:33]} Rxf3
{[%clk 00:01:25]} {[%emt 00:02:26]} 33. Qxf3 {[%clk 00:09:27]} {[%emt
00:00:28]} Rf7 {[%clk 00:00:33]} {[%emt 00:01:22]} 34. Qxf7 {[%clk 00:06:45]}
{[%emt 00:03:11]} Qxf7 {[%clk 00:00:40]} {[%emt 00:00:24]} 35. Rc8+ {[%clk
00:07:14]} {[%emt 00:00:01]} Kg7 {[%clk 00:01:09]} {[%emt 00:00:01]} 36. Rc7
{[%clk 00:07:39]} {[%emt 00:00:05]} Nxe5 {[%clk 00:01:19]} {[%emt 00:00:20]} 37.
Bd5 {[%clk 00:07:59]} {[%emt 00:00:10]} Kf6 {[%clk 00:00:35]} {[%emt 00:01:15]}
38. Bxf7 {[%clk 00:08:22]} {[%emt 00:00:07]} Nxf7 {[%clk 00:01:00]} {[%emt
00:00:05]} 39. Rxa7 {[%clk 00:07:30]} {[%emt 00:01:21]} Nxd6 {[%clk 00:01:23]}
{[%emt 00:00:08]} 40. Rxh7 {[%clk 00:07:51]} {[%emt 00:00:09]} Ke5 {[%clk
00:01:27]} {[%emt 00:00:26]} 41. Rh4 {[%clk 00:00:51]} {[%emt 00:07:28]} b5
{[%clk 00:11:09]} {[%emt 00:06:19]} 42. a4 {[%clk 00:13:49]} {[%emt 00:03:32]}
bxa4 {[%clk 00:06:15]} {[%emt 00:05:25]} 43. bxa4 {[%clk 00:14:14]} {[%emt
00:00:04]} Kd5 {[%clk 00:06:31]} {[%emt 00:00:14]} 44. a5 {[%clk 00:14:27]}
{[%emt 00:00:17]} Kc5 {[%clk 00:04:28]} {[%emt 00:02:33]} 45. Ra4 {[%clk
00:14:52]} {[%emt 00:00:05]} Nc8 {[%clk 00:03:00]} {[%emt 00:01:58]} 46. Ra1
{[%clk 00:09:48]} {[%emt 00:05:34]} Kb5 {[%clk 00:03:14]} {[%emt 00:00:17]} 47.
a6 {[%clk 00:10:11]} {[%emt 00:00:07]} Kb6 {[%clk 00:03:43]} {[%emt 00:00:01]}
48. Kg2 {[%clk 00:10:28]} {[%emt 00:00:13]} Ka7 {[%clk 00:03:51]} {[%emt
00:00:22]} 49. Kxg3 {[%clk 00:10:51]} {[%emt 00:00:07]} Ne7 {[%clk 00:02:47]}
{[%emt 00:01:33]} 50. Kf4 {[%clk 00:10:50]} {[%emt 00:00:31]} Nc6 {[%clk
00:03:14]} {[%emt 00:00:03]} 51. Ke4 {[%clk 00:11:07]} {[%emt 00:00:14]} Nb4
{[%clk 00:03:35]} {[%emt 00:00:08]} 52. Ke5 {[%clk 00:10:29]} {[%emt 00:01:08]}
Nxa6 {[%clk 00:03:59]} {[%emt 00:00:07]} 53. Kd6 {[%clk 00:10:17]} {[%emt
00:00:41]} Kb6 {[%clk 00:04:09]} {[%emt 00:00:20]} 54. Rb1+ {[%clk 00:10:37]}
{[%emt 00:00:09]} Ka5 {[%clk 00:04:04]} {[%emt 00:00:35]} 1/2-1/2

[Event "Polofinale MCR junioru 2023"]
[Site "Czech Republic"]
[Date "2023.11.13"]
[Round "3.30"]
[White "Kulhanek, Jachym"]
[Black "Cerny, Michal"]
[Result "0-1"]
[TimeControl "90 min per 40 moves + 15 min + 30 sec / move from move 1"]
[WhiteFideId "23716193"]
[BlackFideId "391964"]
[WhiteElo "2056"]
[BlackElo "1920"]

1. e4 {[%emt 00:00:04]} e5 {[%emt 00:00:09]} 2. Nf3 {[%emt 00:00:04]} Nc6
{[%emt 00:00:05]} 3. Bb5 {[%emt 00:00:04]} a6 {[%emt 00:00:04]} 4. Ba4 {[%emt
00:00:03]} Nf6 {[%emt 00:00:06]} 5. O-O {[%emt 00:00:05]} b5 {[%emt 00:00:06]}
6. Bb3 {[%emt 00:00:04]} d6 {[%emt 00:00:17]} 7. c3 {[%emt 00:01:26]} Bg4
{[%emt 00:01:54]} 8. d3 {[%emt 00:00:12]} Be7 {[%emt 00:00:30]} 9. Re1 O-O
{[%emt 00:01:28]} 10. Nbd2 Re8 {[%emt 00:01:40]} 11. h3 {[%emt 00:01:37]} Bh5
{[%emt 00:00:52]} 12. Nf1 {[%emt 00:00:13]} Bf8 {[%emt 00:03:10]} 13. Ng3
{[%emt 00:02:35]} Bg6 {[%emt 00:00:23]} 14. Bg5 {[%emt 00:09:25]} Na5 {[%emt
00:08:13]} 15. Bc2 {[%emt 00:00:43]} c5 {[%emt 00:00:45]} 16. a4 {[%emt
00:13:12]} b4 {[%emt 00:08:24]} 17. cxb4 {[%emt 00:14:06]} cxb4 {[%emt
00:00:02]} 18. d4 {[%emt 00:00:42]} h6 {[%emt 00:03:00]} 19. Bd2 {[%emt
00:05:02]} Qb6 {[%emt 00:03:05]} 20. d5 {[%emt 00:04:08]} Rec8 {[%emt
00:10:33]} 21. Be3 {[%emt 00:11:41]} Qb7 {[%emt 00:01:18]} 22. Bd3 {[%emt
00:03:09]} Nc4 {[%emt 00:04:06]} 23. Bxc4 {[%emt 00:02:44]} Rxc4 {[%emt
00:00:10]} 24. Nd2 {[%emt 00:00:17]} Rc7 {[%emt 00:06:17]} 25. f3 {[%emt
00:03:27]} Nd7 {[%emt 00:08:25]} 26. a5 {[%emt 00:03:36]} f5 {[%emt 00:06:39]}
27. Bf2 {[%emt 00:03:40]} Nc5 {[%emt 00:02:11]} 28. b3 {[%emt 00:03:20]} Nd3
{[%emt 00:05:11]} 29. Rf1 {[%emt 00:01:00]} Nxf2 {[%emt 00:01:11]} 30. Rxf2
{[%emt 00:00:10]} Be7 {[%emt 00:02:34]} 31. Rf1 {[%emt 00:07:28]} f4 {[%emt
00:04:48]} 32. Ne2 {[%emt 00:02:12]} Be8 {[%emt 00:03:34]} 33. Nc4 {[%emt
00:00:59]} Bb5 {[%emt 00:03:07]} 34. Nb6 {[%emt 00:00:07]} Rb8 {[%emt
00:00:46]} 35. Qd2 {[%emt 00:02:11]} Bd8 {[%emt 00:01:25]} 36. Rf2 {[%emt
00:02:29]} Rc5 {[%emt 00:02:21]} 37. Qxb4 {[%emt 00:00:53]} Bxe2 {[%emt
00:01:46]} 38. Rxe2 {[%emt 00:00:36]} Rxa5 {[%emt 00:00:39]} 39. Rxa5 {[%emt
00:01:14]} Qxb6+ {[%emt 00:00:07]} 0-1

[Event "Polofinale MCR junioru 2023"]
[Site "Czech Republic"]
[Date "2023.11.13"]
[Round "3.31"]
[White "Urbansky, Stepan"]
[Black "Vasinek, Martin"]
[Result "1-0"]
[TimeControl "90 min per 40 moves + 15 min + 30 sec / move from move 1"]
[WhiteFideId "23761741"]
[BlackFideId "392200"]
[WhiteElo "1675"]
[BlackElo "1987"]

1. e4 {[%clk 01:30:57]} {[%emt 00:00:03]} c5 {[%clk 01:30:56]} {[%emt
00:00:04]} 2. Nf3 {[%clk 01:31:21]} {[%emt 00:00:05]} Nc6 {[%clk 01:31:24]}
{[%emt 00:00:03]} 3. d4 {[%clk 01:31:47]} {[%emt 00:00:04]} cxd4 {[%clk
01:31:50]} {[%emt 00:00:04]} 4. c3 {[%clk 01:32:10]} {[%emt 00:00:06]} dxc3
{[%clk 01:32:12]} {[%emt 00:00:08]} 5. Nxc3 {[%clk 01:32:33]} {[%emt 00:00:07]}
d6 {[%clk 01:32:00]} {[%emt 00:00:43]} 6. Bc4 {[%clk 01:32:56]} {[%emt
00:00:06]} e6 {[%clk 01:32:23]} {[%emt 00:00:08]} 7. O-O {[%clk 01:33:18]}
{[%emt 00:00:07]} Be7 {[%clk 01:30:52]} {[%emt 00:02:01]} 8. Qe2 {[%clk
01:33:27]} {[%emt 00:00:21]} a6 {[%clk 01:29:26]} {[%emt 00:01:56]} 9. Rd1
{[%clk 01:30:57]} {[%emt 00:02:59]} Qc7 {[%clk 01:26:54]} {[%emt 00:03:03]} 10.
h3 {[%clk 01:24:08]} {[%emt 00:07:20]} Nf6 {[%clk 01:26:41]} {[%emt 00:00:43]}
11. Bf4 {[%clk 01:23:00]} {[%emt 00:01:38]} O-O {[%clk 01:25:49]} {[%emt
00:01:22]} 12. Rac1 {[%clk 01:22:24]} {[%emt 00:01:06]} b5 {[%clk 01:23:27]}
{[%emt 00:02:52]} 13. Nd5 {[%clk 01:10:08]} {[%emt 00:12:45]} exd5 {[%clk
01:14:45]} {[%emt 00:09:12]} 14. Bxd5 {[%clk 01:10:18]} {[%emt 00:00:20]} Bb7
{[%clk 01:14:26]} {[%emt 00:00:49]} 15. Bxc6 {[%clk 01:10:13]} {[%emt
00:00:36]} Bxc6 {[%clk 01:10:59]} {[%emt 00:03:56]} 16. Nd4 {[%clk 01:10:13]}
{[%emt 00:00:30]} Qb7 {[%clk 01:03:40]} {[%emt 00:07:49]} 17. Nxc6 {[%clk
01:07:03]} {[%emt 00:03:40]} Rfc8 {[%clk 01:02:42]} {[%emt 00:01:29]} 18. Nxe7+
{[%clk 01:05:42]} {[%emt 00:01:51]} Qxe7 {[%clk 01:03:11]} {[%emt 00:00:01]} 19.
Rxc8+ {[%clk 00:58:49]} {[%emt 00:07:23]} Rxc8 {[%clk 01:03:39]} {[%emt
00:00:02]} 20. Rxd6 {[%clk 00:59:03]} {[%emt 00:00:16]} Nxe4 {[%clk 00:58:36]}
{[%emt 00:05:33]} 21. Rxa6 {[%clk 00:54:00]} {[%emt 00:05:33]} Qb4 {[%clk
00:56:55]} {[%emt 00:02:11]} 22. Rb6 {[%clk 00:48:41]} {[%emt 00:05:48]} Nf6
{[%clk 00:46:06]} {[%emt 00:11:18]} 23. Rxf6 {[%clk 00:46:33]} {[%emt
00:02:38]} 1-0

[Event "Polofinale MCR junioru 2023"]
[Site "Czech Republic"]
[Date "2023.11.13"]
[Round "3.32"]
[White "Sadil, Antonin"]
[Black "Slaby, Matej"]
[Result "1-0"]
[TimeControl "90 min per 40 moves + 15 min + 30 sec / move from move 1"]
[WhiteFideId "23735597"]
[BlackFideId "23734876"]
[WhiteElo "1648"]
[BlackElo "1940"]

1. e4 {[%clk 01:30:08]} {[%emt 00:00:51]} d5 {[%clk 01:30:54]} {[%emt
00:00:06]} 2. exd5 {[%clk 01:30:20]} {[%emt 00:00:18]} Qxd5 {[%emt 00:00:10]} 3.
Nc3 {[%clk 01:30:33]} {[%emt 00:00:13]} Qd6 {[%clk 01:31:42]} {[%emt 00:00:05]}
4. d4 {[%emt 00:00:26]} Nf6 {[%emt 00:00:34]} 5. Nf3 {[%clk 01:30:39]} {[%emt
00:00:01]} c6 {[%emt 00:00:26]} 6. g3 {[%emt 00:00:43]} Bg4 {[%emt 00:00:19]} 7.
Bg2 {[%emt 00:01:56]} Nbd7 {[%clk 01:30:24]} {[%emt 00:00:50]} 8. O-O {[%emt
00:02:36]} e6 {[%clk 01:29:34]} {[%emt 00:00:07]} 9. Bf4 {[%clk 01:26:29]}
{[%emt 00:03:45]} Qb4 {[%clk 01:29:50]} {[%emt 00:00:13]} 10. Rb1 {[%clk
01:18:44]} {[%emt 00:08:15]} Be7 {[%clk 01:27:58]} {[%emt 00:02:23]} 11. Qd2
{[%clk 01:17:29]} {[%emt 00:01:45]} Nd5 {[%clk 01:19:32]} {[%emt 00:08:57]} 12.
Nxd5 {[%clk 01:15:15]} {[%emt 00:02:43]} cxd5 {[%clk 01:19:49]} {[%emt
00:00:13]} 13. c3 {[%clk 01:13:24]} {[%emt 00:02:21]} Qa5 {[%clk 01:16:12]}
{[%emt 00:04:07]} 14. b4 {[%clk 01:07:26]} {[%emt 00:06:28]} Qd8 {[%clk
01:16:19]} {[%emt 00:00:23]} 15. Rbc1 {[%clk 00:59:26]} {[%emt 00:08:29]} Rc8
{[%clk 01:03:34]} {[%emt 00:13:16]} 16. Ne5 {[%clk 00:55:12]} {[%emt 00:04:44]}
Nxe5 {[%clk 00:59:26]} {[%emt 00:04:38]} 17. Bxe5 {[%clk 00:54:18]} {[%emt
00:01:24]} O-O {[%clk 00:59:43]} {[%emt 00:00:14]} 18. h4 {[%clk 00:50:22]}
{[%emt 00:04:25]} h5 {[%clk 00:54:43]} {[%emt 00:05:30]} 19. c4 {[%emt
00:07:03]} Rxc4 {[%clk 00:49:27]} {[%emt 00:02:44]} 20. Rxc4 {[%clk 00:47:09]}
{[%emt 00:02:35]} dxc4 {[%clk 00:49:53]} {[%emt 00:00:05]} 21. a3 {[%clk
00:43:09]} {[%emt 00:04:30]} Qd7 {[%clk 00:48:03]} {[%emt 00:02:20]} 22. Qc3
{[%clk 00:38:20]} {[%emt 00:05:18]} f6 {[%clk 00:42:59]} {[%emt 00:05:34]} 23.
Bf4 {[%clk 00:38:07]} {[%emt 00:00:43]} b5 {[%clk 00:42:50]} {[%emt 00:00:40]}
24. Re1 {[%clk 00:35:31]} {[%emt 00:03:04]} Kf7 {[%clk 00:27:04]} {[%emt
00:16:16]} 25. Kh2 {[%clk 00:25:49]} {[%emt 00:10:13]} Rd8 {[%clk 00:25:57]}
{[%emt 00:01:37]} 26. Be3 {[%clk 00:25:45]} {[%emt 00:00:34]} Bd6 {[%clk
00:17:47]} {[%emt 00:08:40]} 27. f4 {[%clk 00:23:03]} {[%emt 00:03:11]} Bc7
{[%clk 00:16:55]} {[%emt 00:01:23]} 28. a4 {[%clk 00:17:13]} {[%emt 00:06:20]}
a6 {[%clk 00:15:41]} {[%emt 00:01:44]} 29. axb5 {[%clk 00:16:18]} {[%emt
00:01:26]} Qxb5 {[%clk 00:09:18]} {[%emt 00:06:52]} 30. Bf1 {[%clk 00:15:00]}
{[%emt 00:01:47]} Bd6 {[%clk 00:08:35]} {[%emt 00:01:13]} 31. Bd2 {[%emt
00:06:47]} Rb8 {[%emt 00:05:32]} 32. Bxc4 {[%clk 00:11:13]} {[%emt 00:00:11]}
Qxb4 {[%emt 00:01:27]} 33. Qd3 {[%emt 00:01:49]} Qb2 {[%emt 00:02:06]} 34. Kg1
{[%clk 00:07:59]} {[%emt 00:00:21]} Rd8 {[%emt 00:02:37]} 35. Rb1 {[%clk
00:06:24]} {[%emt 00:00:17]} Qa3 {[%clk 00:01:01]} 36. Rb7+ {[%clk 00:06:08]}
{[%emt 00:00:47]} Kg8 {[%emt 00:01:51]} 37. Qxa3 {[%clk 00:04:07]} {[%emt
00:01:14]} Bxa3 {[%emt 00:00:35]} 38. Be3 {[%clk 00:03:49]} {[%emt 00:00:14]}
a5 {[%clk 00:00:39]} {[%emt 00:01:17]} 39. Rb5 {[%clk 00:03:43]} {[%emt
00:00:35]} Bb4 {[%clk 00:00:33]} {[%emt 00:00:37]} 40. f5 {[%clk 00:03:46]}
{[%emt 00:00:27]} g6 {[%clk 00:00:33]} {[%emt 00:00:31]} 41. fxe6 {[%clk
00:03:36]} {[%emt 00:00:39]} Kf8 {[%clk 00:10:12]} {[%emt 00:06:21]} 42. d5
{[%clk 00:19:33]} {[%emt 00:00:33]} Rc8 {[%clk 00:09:07]} {[%emt 00:01:36]} 43.
Bf1 {[%clk 00:16:52]} {[%emt 00:03:10]} Bd6 {[%clk 00:05:16]} {[%emt 00:04:22]}
44. Bh6+ {[%clk 00:14:29]} {[%emt 00:02:52]} Ke8 {[%clk 00:04:52]} {[%emt
00:00:54]} 45. Rb7 {[%clk 00:13:32]} {[%emt 00:01:27]} Bxe6 {[%clk 00:02:12]}
{[%emt 00:03:10]} 46. dxe6 {[%clk 00:13:20]} {[%emt 00:00:42]} Rc7 {[%clk
00:02:29]} {[%emt 00:00:13]} 47. Rxc7 {[%clk 00:12:49]} {[%emt 00:01:02]} Bxc7
{[%clk 00:02:54]} {[%emt 00:00:05]} 48. Kg2 {[%clk 00:12:34]} {[%emt 00:00:42]}
Ke7 {[%clk 00:03:17]} {[%emt 00:00:09]} 49. Bc4 {[%clk 00:12:42]} {[%emt
00:00:22]} a4 {[%clk 00:03:08]} {[%emt 00:00:39]} 50. Be3 {[%clk 00:11:53]}
{[%emt 00:01:18]} Bd6 {[%clk 00:03:20]} {[%emt 00:00:18]} 51. Kf3 {[%clk
00:11:30]} {[%emt 00:00:52]} 1-0

[Event "Polofinale MCR junioru 2023"]
[Site "Czech Republic"]
[Date "2023.11.13"]
[Round "3.33"]
[White "Kocman, Patrik"]
[Black "Popov, Roman"]
[Result "1-0"]
[TimeControl "90 min per 40 moves + 15 min + 30 sec / move from move 1"]
[WhiteFideId "23735732"]
[BlackFideId "23732580"]
[WhiteElo "1478"]
[BlackElo "1889"]

1. e4 {[%clk 01:31:17]} {[%emt 00:00:02]} Nf6 {[%clk 01:30:55]} {[%emt
00:00:06]} 2. e5 {[%clk 01:31:22]} {[%emt 00:00:25]} Nd5 {[%clk 01:31:19]}
{[%emt 00:00:06]} 3. d4 {[%clk 01:30:22]} {[%emt 00:01:31]} d6 {[%clk
01:31:40]} {[%emt 00:00:08]} 4. exd6 {[%clk 01:29:36]} {[%emt 00:01:16]} cxd6
{[%clk 01:31:54]} {[%emt 00:00:16]} 5. Nf3 {[%clk 01:28:09]} {[%emt 00:01:57]}
g6 {[%clk 01:29:40]} {[%emt 00:02:45]} 6. Be2 {[%clk 01:25:05]} {[%emt
00:03:35]} Bg7 {[%clk 01:29:41]} {[%emt 00:00:29]} 7. O-O {[%clk 01:24:21]}
{[%emt 00:01:14]} O-O {[%clk 01:29:32]} {[%emt 00:00:37]} 8. c4 {[%clk
01:22:06]} {[%emt 00:02:46]} Nb6 {[%clk 01:29:53]} {[%emt 00:00:09]} 9. Nc3
{[%clk 01:21:46]} {[%emt 00:00:50]} Bg4 {[%clk 01:28:40]} {[%emt 00:01:43]} 10.
b3 {[%clk 01:19:46]} {[%emt 00:02:30]} Nc6 {[%clk 01:28:42]} {[%emt 00:00:28]}
11. Be3 {[%clk 01:19:21]} {[%emt 00:00:55]} d5 {[%clk 01:27:58]} {[%emt
00:01:15]} 12. cxd5 {[%clk 01:11:16]} {[%emt 00:08:35]} Nxd5 {[%clk 01:27:40]}
{[%emt 00:00:47]} 13. Nxd5 {[%clk 01:09:22]} {[%emt 00:02:25]} Qxd5 {[%clk
01:27:29]} {[%emt 00:00:41]} 14. h3 {[%clk 01:08:01]} {[%emt 00:01:51]} Bxf3
{[%clk 01:21:32]} {[%emt 00:06:27]} 15. Bxf3 {[%clk 01:08:18]} {[%emt
00:00:12]} Qd6 {[%clk 01:21:01]} {[%emt 00:01:00]} 16. Rc1 {[%clk 01:01:42]}
{[%emt 00:07:07]} Rac8 {[%clk 01:04:21]} {[%emt 00:17:10]} 17. Qd2 {[%clk
00:39:13]} {[%emt 00:22:59]} Bxd4 {[%clk 00:40:10]} {[%emt 00:24:41]} 18. Rxc6
{[%clk 00:31:58]} {[%emt 00:07:45]} bxc6 {[%clk 00:38:00]} {[%emt 00:02:39]} 19.
Qxd4 {[%clk 00:32:07]} {[%emt 00:00:21]} Qxd4 {[%clk 00:37:04]} {[%emt
00:01:26]} 20. Bxd4 {[%clk 00:32:26]} {[%emt 00:00:11]} c5 {[%clk 00:37:07]}
{[%emt 00:00:27]} 21. Be3 {[%clk 00:29:01]} {[%emt 00:03:54]} Rc7 {[%clk
00:34:33]} {[%emt 00:03:05]} 22. Rc1 {[%clk 00:28:07]} {[%emt 00:01:23]} Rfc8
{[%clk 00:34:40]} {[%emt 00:00:25]} 23. Be2 {[%clk 00:27:51]} {[%emt 00:00:45]}
Rc6 {[%clk 00:32:36]} {[%emt 00:02:34]} 24. Bb5 {[%clk 00:25:40]} {[%emt
00:02:40]} Rb6 {[%clk 00:28:23]} {[%emt 00:04:44]} 25. Ba4 {[%clk 00:24:51]}
{[%emt 00:01:18]} Rb7 {[%clk 00:17:11]} {[%emt 00:11:42]} 26. Rxc5 {[%clk
00:22:50]} {[%emt 00:02:32]} Rxc5 {[%clk 00:17:23]} {[%emt 00:00:18]} 27. Bxc5
{[%clk 00:22:42]} {[%emt 00:00:37]} Rc7 {[%clk 00:17:47]} {[%emt 00:00:06]} 28.
b4 {[%clk 00:23:01]} {[%emt 00:00:11]} Kg7 {[%clk 00:17:56]} {[%emt 00:00:21]}
29. Kf1 {[%clk 00:23:05]} {[%emt 00:00:26]} f5 {[%clk 00:16:30]} {[%emt
00:01:56]} 30. Ke2 {[%clk 00:23:10]} {[%emt 00:00:24]} Kf6 {[%clk 00:16:40]}
{[%emt 00:00:20]} 31. Bb3 {[%clk 00:21:45]} {[%emt 00:01:55]} e5 {[%clk
00:16:36]} {[%emt 00:00:35]} 32. f3 {[%clk 00:20:14]} {[%emt 00:02:00]} g5
{[%clk 00:14:56]} {[%emt 00:02:10]} 33. g4 {[%clk 00:13:10]} {[%emt 00:07:34]}
h6 {[%clk 00:06:57]} {[%emt 00:08:29]} 34. Bc2 {[%clk 00:10:47]} {[%emt
00:02:53]} fxg4 {[%clk 00:06:41]} {[%emt 00:00:45]} 35. hxg4 {[%clk 00:11:04]}
{[%emt 00:00:14]} Rd7 {[%clk 00:01:16]} {[%emt 00:05:53]} 36. Be4 {[%clk
00:10:15]} {[%emt 00:01:19]} Rc7 {[%clk 00:01:18]} {[%emt 00:00:28]} 37. Kd3
{[%clk 00:09:23]} {[%emt 00:01:23]} Rd7+ {[%clk 00:00:41]} {[%emt 00:01:08]} 38.
Kc4 {[%clk 00:08:57]} {[%emt 00:00:55]} a6 {[%clk 00:00:47]} {[%emt 00:00:25]}
39. a4 {[%clk 00:09:12]} {[%emt 00:00:15]} Rd1 {[%clk 00:00:41]} {[%emt
00:00:36]} 40. b5 {[%clk 00:07:59]} {[%emt 00:01:43]} Rc1+ {[%clk 00:00:37]}
{[%emt 00:00:34]} 41. Kd5 {[%clk 00:06:45]} {[%emt 00:01:43]} axb5 {[%clk
00:13:03]} {[%emt 00:03:35]} 42. axb5 {[%clk 00:23:00]} {[%emt 00:00:15]} 1-0